bitfinex/quotes_ETHUSD_20241119
["timestamp","ask_amount","ask_price","bid_price","bid_amount"]
[1731980920437,3.16829,3156.3,3155.7,3.48529]
[1731980920849,3.16819,3156.4,3155.9,0.3165]
[1731980921012,3.16819,3156.4,3155.9,0.665021]
[1731980921211,3.16845,3156.2,3155.9,0.3165]
[1731980921530,3.16819,3156.4,3155.9,0.3165]
[1731980921727,0.8235,3156.8,3155.9,0.3165]
[1731980921929,0.8235,3156.8,3156.0,0.3165]
[1731980922458,3.16817,3156.4,3156.0,0.3165]
[1731980922831,3.16826,3156.3,3155.8,0.3165]
[1731980923164,3.16853,3156.1,3155.8,0.3165]
[1731980924073,3.16853,3156.1,3155.6,0.3165]
[1731980924737,2.85193,3156.1,3155.6,0.3165]
[1731980926309,3.16857,3156.0,3155.6,0.3165]
[1731980926520,3.16857,3156.0,3155.5,0.3165]
[1731980928263,3.16837,3156.2,3155.5,3.48555]
[1731980928428,3.16837,3156.2,3155.5,4.76794]
[1731980928829,3.16856,3156.0,3155.5,1.59889]
[1731980929033,3.16856,3156.0,3155.5,0.3165]
[1731980930714,0.7614,3156.5,3155.5,0.3165]
[1731980931037,3.16896,3155.7,3155.6,0.3165]
[1731980931717,3.16886,3155.8,3155.6,0.3165]
[1731980931965,3.16886,3155.8,3155.7,0.3165]
[1731980932269,3.16841,3156.2,3155.7,0.3165]
[1731980932425,3.16865,3156.0,3155.7,0.3165]
[1731980932628,3.16876,3155.8,3155.7,0.3165]
[1731980932822,3.16876,3155.8,3155.3,0.3165]
[1731980933034,3.16888,3155.7,3155.3,0.3165]
[1731980933240,3.16914,3155.5,3155.3,0.3165]
[1731980933470,3.16917,3155.4,3155.3,0.3165]
[1731980933837,3.96177,3155.4,3155.3,0.3165]
[1731980934041,3.96177,3155.4,3154.6,0.3165]
[1731980934042,3.16944,3155.2,3154.6,0.3165]
[1731980934250,3.16917,3155.4,3154.8,0.3165]
[1731980934605,3.16927,3155.3,3154.8,0.3165]
[1731980935574,3.16941,3155.2,3154.7,0.3165]
[1731980936073,3.96158,3155.6,3154.9,0.3165]
[1731980936240,3.96158,3155.6,3154.9,3.4861]
[1731980936452,3.16907,3155.5,3154.9,3.4861]
[1731980936648,0.7926,3155.6,3154.9,3.4861]
[1731980936846,3.16894,3155.7,3155.1,0.3165]
[1731980937176,3.16894,3155.7,3155.1,3.4859]
[1731980938220,3.16894,3155.7,3155.1,4.151452]
[1731980938433,6.33741,3155.9,3155.3,0.3165]
[1731980938531,3.16868,3155.9,3155.3,0.3165]
[1731980938735,3.16878,3155.8,3155.3,0.3165]
[1731980940261,3.16878,3155.8,3155.2,0.3165]
[1731980940465,3.16905,3155.6,3155.2,0.3165]
[1731980940783,3.16919,3155.4,3155.2,0.3165]
[1731980940989,3.16921,3155.4,3155.2,0.3165]
[1731980941336,3.16921,3155.4,3154.8,0.3165]
[1731980941577,3.16921,3155.4,3154.8,3.48624]
[1731980942088,3.1688,3155.8,3155.2,0.3165]
[1731980942370,3.1688,3155.8,3155.2,3.48586]
[1731980942881,6.33766,3155.8,3155.2,3.48586]
[1731980943096,3.1688,3155.8,3155.3,0.3165]
[1731980943848,3.1688,3155.8,3155.3,0.31508938]
[1731980944080,3.16861,3156.0,3155.4,0.31367876]
[1731980944289,3.16873,3155.9,3155.4,0.31367876]
[1731980944435,3.96645,3156.1,3155.4,3.48279876]
[1731980944749,0.7979,3156.1,3155.4,3.48279876]
[1731980944938,3.16856,3156.0,3155.4,3.48279876]
[1731980945639,3.16877,3155.8,3155.5,0.31367876]
[1731980945947,3.16856,3156.0,3155.5,0.31367876]
[1731980946157,0.7979,3156.1,3155.3,3.16924]
[1731980946333,3.16866,3155.9,3155.4,0.3165]
[1731980946532,3.16892,3155.7,3155.4,0.3165]
[1731980946796,3.16898,3155.6,3155.2,0.3165]
[1731980947077,3.16871,3155.9,3155.2,0.3165]
[1731980947290,3.16887,3155.7,3155.2,0.3165]
[1731980947458,0.7979,3156.1,3155.2,0.3165]
[1731980947632,3.16895,3155.7,3155.2,0.3165]
[1731980947952,3.16878,3155.8,3155.2,3.48586]
[1731980948156,3.16878,3155.8,3155.2,4.151386]
[1731980948739,3.16888,3155.7,3155.2,4.151386]
[1731980948939,3.16888,3155.7,3155.2,3.48586]
[1731980949369,3.16888,3155.7,3155.0,3.48602]
[1731980949947,3.16897,3155.6,3155.0,3.48602]
[1731980950188,0.7671,3156.0,3155.0,0.3165]
[1731980950483,3.16943,3155.2,3154.7,0.3165]
[1731980950907,3.16943,3155.2,3154.6,3.16978]
[1731980951109,3.16943,3155.2,3154.7,0.3165]
[1731980951313,3.16921,3155.4,3154.9,0.3165]
[1731980951548,3.16888,3155.7,3155.1,3.48589]
[1731980951667,3.16877,3155.8,3155.3,0.3165]
[1731980951865,3.16877,3155.8,3155.3,3.48576]
[1731980953986,3.16877,3155.8,3155.2,3.48586]
[1731980954835,2.85217,3155.8,3155.2,3.48586]
[1731980955007,2.85217,3155.8,3155.2,4.151385]
[1731980955510,2.85217,3155.8,3155.4,0.3165]
[1731980956015,7.81066993,3156.0,3155.4,3.48566]
[1731980956439,3.16872,3155.9,3155.4,0.3165]
[1731980956761,3.16877,3155.8,3155.5,0.3165]
[1731980957729,3.16877,3155.8,3155.3,0.3165]
[1731980957737,3.16877,3155.8,3155.3,0.665082]
[1731980958252,3.16861,3156.0,3155.5,0.3165]
[1731980959023,3.16867,3155.9,3155.5,0.3165]
[1731980959235,7.81068993,3156.0,3155.3,0.348582]
[1731980959236,3.16878,3155.8,3155.6,0.3165]
[1731980959452,3.98796,3155.7,3155.6,0.3165]
[1731980959635,6.98796,3155.7,3155.6,0.3165]
[1731980959963,6.98796,3155.7,3154.0,3.05903183]
[1731980959964,12.46329331,3155.7,3154.3,3.17027]
[1731980960114,3.16978,3154.8,3154.4,0.3165]
[1731980960250,3.16978,3154.8,3154.3,0.3165]
[1731980960402,3.16991,3154.7,3154.3,0.3165]
[1731980961422,3.16991,3154.7,3154.2,3.17037]
[1731980961423,3.16991,3154.7,3154.1,3.48695]
[1731980962559,0.7691,3154.8,3154.1,0.3165]
[1731980962702,0.7691,3154.8,3154.3,0.3165]
[1731980962703,3.93895,3154.8,3154.3,0.3165]
[1731980963343,3.16988,3154.7,3154.3,0.3165]
[1731980963509,3.17011,3154.5,3154.3,0.3165]
[1731980963711,3.17017,3154.4,3153.9,0.3165]
[1731980964048,3.16987,3154.7,3153.9,2.85391]
[1731980964197,3.17004,3154.6,3154.0,0.3165]
[1731980964550,3.17028,3154.3,3154.0,0.3165]
[1731980964847,3.17007,3154.5,3153.8,0.3165]
[1731980965012,3.17007,3154.5,3153.7,3.17084]
[1731980965013,3.17007,3154.5,3154.0,0.3165]
[1731980965202,0.7691,3154.8,3154.2,3.4868]
[1731980965751,0.7691,3154.8,3154.4,0.3165]
[1731980966130,3.93895,3154.8,3154.4,0.3165]
[1731980966645,3.93895,3154.8,3154.5,0.3165]
[1731980967706,3.93895,3154.8,3154.3,0.3165]
[1731980968140,3.16959,3155.0,3154.3,3.835407]
[1731980968380,3.16959,3155.0,3154.5,0.3165]
[1731980968526,3.16948,3155.1,3154.7,0.3165]
[1731980968818,3.16957,3155.0,3154.7,0.3165]
[1731980969016,3.16938,3155.2,3154.7,0.3165]
[1731980969963,3.16938,3155.2,3154.7,3.48634]
[1731980970454,3.16938,3155.2,3154.7,0.3165]
[1731980970812,6.33884,3155.2,3154.7,0.3165]
[1731980971011,3.16949,3155.1,3154.7,0.3165]
[1731980973632,3.16967,3154.9,3154.8,0.3165]
[1731980974473,3.16951,3155.1,3154.2,0.3165]
[1731980974666,3.16951,3155.1,3154.4,3.4866]
[1731980974832,6.33907,3155.1,3154.4,3.4866]
[1731980975019,3.16937,3155.2,3154.7,0.3165]
[1731980975219,3.16935,3155.3,3154.7,0.3165]
[1731980975572,3.16958,3155.0,3154.7,0.3165]
[1731980976030,3.16958,3155.0,3154.4,3.1701]
[1731980976031,3.16967,3154.9,3154.8,0.3165]
[1731980977551,3.97507,3154.9,3154.8,0.3165]
[1731980978075,0.8054,3154.9,3154.8,0.3165]
[1731980978244,3.97507,3154.9,3154.8,0.3165]
[1731980979265,3.17002,3154.6,3154.1,0.3165]
[1731980979424,3.17003,3154.6,3154.1,0.3165]
[1731980979830,3.17026,3154.4,3154.1,0.3165]
[1731980980077,3.17026,3154.4,3153.9,0.3165]
[1731980980311,0.8055,3154.0,3153.9,0.3165]
[1731980980649,14.67656005,3154.0,3153.9,0.3165]
[1731980980933,10.03510183,3154.0,3153.9,0.3165]
[1731980981159,3.17104,3153.6,3153.0,0.3165]
[1731980982346,3.17109,3153.5,3153.0,0.3165]
[1731980982830,3.1708,3153.8,3153.2,0.3165]
[1731980983244,3.17089,3153.7,3153.2,0.3165]
[1731980983875,3.1707,3153.9,3153.2,3.48781]
[1731980984079,3.0,3153.9,3153.2,0.3165]
[1731980984287,3.0,3153.9,3153.4,0.3165]
[1731980984288,3.17068,3153.9,3153.4,0.3165]
[1731980984450,3.17068,3153.9,3153.3,3.1712]
[1731980984451,3.17068,3153.9,3153.6,0.3165]
[1731980985040,0.798,3153.8,3153.6,0.3165]
[1731980985299,3.17087,3153.7,3153.6,0.3165]
[1731980985552,3.17108,3153.5,3153.0,0.3165]
[1731980985675,3.17108,3153.5,3153.2,0.3165]
[1731980985881,3.17118,3153.4,3153.2,0.3165]
[1731980986070,3.17128,3153.3,3153.2,0.3165]
[1731980986250,3.17108,3153.5,3153.2,0.3165]
[1731980986459,3.1712,3153.4,3153.2,0.3165]
[1731980986788,3.17134,3153.3,3152.9,0.3165]
[1731980987651,3.17134,3153.3,3152.8,0.3165]
[1731980987840,3.98674,3153.3,3153.0,0.3165]
[1731980988043,3.17148,3153.1,3153.0,0.3165]
[1731980988991,3.17158,3153.0,3152.5,0.3165]
[1731980989492,3.17138,3153.2,3152.5,3.48857]
[1731980989796,3.17148,3153.1,3152.5,3.4885]
[1731980990092,3.17148,3153.1,3152.5,4.154574]
[1731980990389,7.15804,3153.3,3152.5,4.154574]
[1731980990543,3.98669,3153.3,3152.5,4.154574]
[1731980990737,3.17139,3153.2,3152.5,4.154574]
[1731980991374,7.15803,3153.3,3152.7,0.3165]
[1731980991790,3.17138,3153.2,3152.7,0.3165]
[1731980992313,3.17113,3153.5,3152.9,0.3165]
[1731980992514,3.17118,3153.4,3152.9,0.3165]
[1731980993014,3.17105,3153.6,3152.9,3.48816]
[1731980993210,3.17105,3153.6,3152.9,0.3165]
[1731980993387,3.17105,3153.6,3153.0,3.17156]
[1731980993587,3.17109,3153.5,3152.9,0.3165]
[1731980994514,6.92704,3153.7,3153.1,0.3165]
[1731980994874,3.17098,3153.6,3153.1,0.3165]
[1731980998407,3.17098,3153.6,3153.2,0.3165]
[1731980998731,3.17171,3152.9,3152.7,0.3165]
[1731980998883,3.17178,3152.8,3152.7,0.3165]
[1731980999294,3.17178,3152.8,3152.3,0.3165]
[1731980999482,3.17196,3152.7,3152.3,0.3165]
[1731980999695,3.17198,3152.6,3152.3,0.3165]
[1731980999942,3.17211,3152.5,3152.3,0.3165]
[1731981000441,3.17211,3152.5,3152.0,0.3165]
[1731981000646,3.17223,3152.4,3152.0,0.3165]
[1731981001821,3.94922,3153.0,3152.1,0.3165]
[1731981001822,3.9715,3152.3,3152.1,0.3165]
[1731981001845,3.17238,3152.2,3152.1,0.3165]
[1731981002439,3.1725,3152.1,3151.5,0.3165]
[1731981002859,3.1725,3152.1,3151.5,3.48951]
[1731981003008,0.7992,3152.3,3151.5,0.3165]
[1731981003198,3.17289,3151.7,3151.5,0.3165]
[1731981003433,3.17319,3151.5,3151.0,0.3165]
[1731981003682,3.17325,3151.4,3151.0,0.3165]
[1731981004279,3.17341,3151.2,3151.0,0.3165]
[1731981004804,3.17349,3151.1,3150.3,3.17426]
[1731981004814,0.7992,3151.7,3150.6,3.1739]
[1731981004815,3.17331,3151.3,3150.6,3.1739]
[1731981005158,3.17331,3151.3,3150.5,3.49058]
[1731981005159,3.1733,3151.3,3150.7,3.17383]
[1731981005509,3.96851,3151.0,3150.3,3.17428]
[1731981005681,0.7949,3151.0,3149.8,0.3165]
[1731981005866,0.7949,3151.0,3150.4,3.17419]
[1731981006059,3.9685,3151.0,3150.4,3.17419]
[1731981006355,3.1737,3150.9,3150.2,3.49089]
[1731981006538,3.17383,3150.8,3150.2,3.49089]
[1731981006953,3.17383,3150.8,3150.1,3.49097]
[1731981007683,3.96851,3151.0,3150.2,3.17438]
[1731981007684,3.17379,3150.9,3150.2,3.17438]
[1731981007848,0.7949,3151.0,3150.2,3.17438]
[1731981008051,0.7949,3151.0,3150.3,3.17427]
[1731981008285,0.7949,3151.0,3150.2,3.17438]
[1731981008437,3.17376,3150.9,3150.2,3.17438]
[1731981008784,3.96849,3151.0,3150.3,3.17423]
[1731981008955,3.96849,3151.0,3150.2,3.17438]
[1731981009271,3.1737,3150.9,3150.2,3.17438]
[1731981009682,0.7774,3150.8,3150.1,0.3165]
[1731981009901,3.17396,3150.7,3150.1,0.3165]
[1731981010183,0.7774,3150.8,3150.2,3.17438]
[1731981010534,0.7774,3150.8,3150.4,3.17419]
[1731981011363,0.7971,3151.1,3150.6,3.17392]
[1731981011581,0.7971,3151.1,3150.4,3.17413]
[1731981012336,3.97059,3151.1,3150.4,3.17413]
[1731981012580,3.17371,3150.9,3150.2,3.17436]
[1731981012770,3.17371,3150.9,3150.3,3.17428]
[1731981012956,3.17371,3150.9,3150.2,3.17436]
[1731981013160,3.17371,3150.9,3150.1,0.63063993]
[1731981013161,3.17396,3150.7,3150.1,0.3165]
[1731981013480,3.17396,3150.7,3150.1,3.1745]
[1731981014157,3.7971,3151.1,3150.0,3.49107]
[1731981014488,0.7597,3150.7,3150.0,3.49107]
[1731981014779,3.93368,3150.7,3150.1,0.3165]
[1731981015357,0.7597,3150.7,3150.2,0.3165]
[1731981015688,3.17416,3150.5,3150.2,0.3165]
[1731981016191,3.1743,3150.3,3150.2,0.3165]
[1731981016780,0.8266,3150.4,3150.2,0.3165]
[1731981017274,0.8266,3150.4,3150.0,0.3165]
[1731981017662,4.00082,3150.4,3150.0,0.3165]
[1731981017865,3.17432,3150.3,3150.0,0.3165]
[1731981018244,3.17432,3150.3,3149.8,0.3165]
[1731981019841,3.17432,3150.3,3149.5,3.17506]
[1731981019842,3.17441,3150.2,3149.9,0.3165]
[1731981020099,3.17432,3150.3,3149.9,0.3165]
[1731981020592,3.17453,3150.1,3149.9,0.3165]
[1731981021087,0.7965,3149.9,3149.6,0.3165]
[1731981021300,3.97122,3149.9,3149.6,0.3165]
[1731981021646,0.7965,3149.9,3149.6,0.3165]
[1731981022068,3.17449,3150.2,3149.6,0.3165]
[1731981022069,3.97099,3150.2,3149.6,3.4915]
[1731981022170,3.17423,3150.4,3149.6,3.4915]
[1731981022171,3.17423,3150.4,3149.9,0.3165]
[1731981022351,3.17433,3150.3,3149.9,0.3165]
[1731981022750,3.97073,3150.4,3149.9,0.3165]
[1731981023079,0.7965,3150.4,3149.9,3.49118]
[1731981023276,3.8148,3150.7,3150.2,0.3165]
[1731981023479,0.8148,3150.7,3150.2,0.3165]
[1731981023671,0.8148,3150.7,3150.4,0.3165]
[1731981024003,0.8148,3150.7,3150.1,6.34794]
[1731981024291,0.8148,3150.7,3150.2,0.3173]
[1731981024473,0.8148,3150.7,3150.4,0.3173]
[1731981027088,0.8228,3151.1,3150.7,0.3173]
[1731981027287,0.8228,3151.1,3150.7,3.49119]
[1731981027495,0.8228,3151.1,3150.7,0.3173]
[1731981028397,3.33149077,3151.4,3150.7,0.3173]
[1731981028794,3.33149077,3151.4,3149.7,3.06903183]
[1731981028795,3.17337,3151.3,3151.0,0.3173]
[1731981028908,0.7834,3151.4,3151.0,0.3173]
[1731981029452,3.1733,3151.3,3150.8,0.3173]
[1731981029713,0.7834,3151.4,3150.8,0.3173]
[1731981030032,0.7834,3151.4,3150.8,3.49102]
[1731981030332,3.17331,3151.3,3150.8,0.3173]
[1731981030513,3.95662,3151.4,3150.8,0.3173]
[1731981031021,3.95662,3151.4,3150.8,3.49109]
[1731981031022,3.95666,3151.4,3150.8,3.49109]
[1731981031581,0.7834,3151.4,3150.8,3.49109]
[1731981031782,3.17331,3151.3,3150.8,3.49109]
[1731981032105,0.04832545,3151.3,3151.1,0.3173]
[1731981032495,0.04832545,3151.3,3151.2,3.49069]
[1731981032717,0.04832545,3151.3,3151.2,0.3173]
[1731981032913,6.98429,3151.7,3151.2,0.3173]
[1731981033086,0.04663826,3151.3,3151.2,0.3173]
[1731981033476,3.173,3151.6,3151.2,0.3173]
[1731981033589,0.04641163,3151.3,3151.2,0.3173]
[1731981033792,3.173,3151.6,3151.1,0.3173]
[1731981034224,0.04646413,3151.5,3151.1,0.3173]
[1731981034426,3.17328,3151.4,3151.1,0.3173]
[1731981034632,3.17339,3151.2,3151.1,0.3173]
[1731981034838,3.17339,3151.2,3150.7,0.3173]
[1731981035038,3.17366,3151.0,3150.7,0.3173]
[1731981035233,3.98519,3150.8,3150.7,0.3173]
[1731981035735,4.03167973,3150.8,3150.3,0.3173]
[1731981036640,4.03176973,3150.8,3150.3,0.3173]
[1731981036991,0.85788973,3150.8,3150.3,0.3173]
[1731981037185,0.04648973,3150.8,3150.5,3.49139]
[1731981037387,3.94921,3151.4,3150.9,0.3173]
[1731981037701,0.04657919,3151.3,3150.9,0.3173]
[1731981038029,3.17347,3151.2,3150.9,0.3173]
[1731981038338,0.0465267,3151.1,3150.9,0.3173]
[1731981038511,0.0465267,3151.1,3150.7,0.3173]
[1731981038717,0.0465267,3151.1,3150.9,0.3173]
[1731981039119,3.17331,3151.3,3150.9,0.3173]
[1731981039292,0.04647707,3151.0,3150.9,0.3173]
[1731981039495,6.34669,3151.3,3150.9,0.3173]
[1731981039681,3.17341,3151.2,3151.0,0.3173]
[1731981039885,3.17331,3151.3,3151.0,0.3173]
[1731981039886,0.7726,3151.1,3151.0,0.3173]
[1731981040129,3.94609,3151.1,3151.0,0.3173]
[1731981040510,0.7726,3151.1,3151.0,0.3173]
[1731981040715,3.17385,3150.8,3150.6,0.3173]
[1731981040937,3.17388,3150.8,3150.6,0.3173]
[1731981041128,0.7726,3151.1,3150.6,0.3173]
[1731981041354,0.7726,3151.1,3150.6,3.49127]
[1731981041659,0.7726,3151.3,3150.8,3.49108]
[1731981041800,0.7726,3151.3,3150.8,0.3173]
[1731981042143,3.94589,3151.3,3150.8,0.3173]
[1731981042673,3.17349,3151.1,3150.6,0.3173]
[1731981045705,0.04347982,3151.0,3150.6,0.3173]
[1731981045848,0.04347982,3151.0,3150.6,3.49122]
[1731981046029,3.94589,3151.3,3150.6,3.49122]
[1731981046234,0.04056075,3151.2,3150.6,3.49122]
[1731981047137,3.21395075,3151.2,3150.6,3.49122]
[1731981047832,0.04056075,3151.2,3150.8,0.3173]
[1731981048033,3.1732,3151.4,3150.8,3.49102]
[1731981048235,0.04058886,3151.3,3150.8,3.49102]
[1731981048506,0.04058886,3151.3,3151.0,0.3173]
[1731981048669,0.04058886,3151.3,3151.2,3.17329]
[1731981049427,0.04072004,3151.8,3151.4,0.3173]
[1731981049620,9.23883473,3152.1,3151.4,0.3173]
[1731981049979,3.21336813,3152.0,3151.4,0.3173]
[1731981050125,0.04077813,3152.0,3151.9,3.48998]
[1731981050548,3.1716,3153.0,3152.5,0.3173]
[1731981050976,0.03563475,3152.9,3152.5,0.3173]
[1731981051122,0.03563475,3152.9,3152.5,3.48938]
[1731981051318,0.03563475,3152.9,3152.7,0.3173]
[1731981051545,3.17141,3153.2,3152.7,0.3173]
[1731981051761,0.91854247,3153.3,3152.7,0.3173]
[1731981051762,0.0355968,3152.8,3152.7,0.3173]
[1731981051945,3.1716,3153.0,3152.7,0.3173]
[1731981052162,0.03559922,3152.8,3152.7,0.3173]
[1731981052377,0.03559922,3152.8,3151.5,3.69396781]
[1731981052378,3.96789,3152.7,3152.1,0.3173]
[1731981052544,3.17218,3152.4,3152.1,0.3173]
[1731981053056,0.03547743,3152.3,3152.1,0.3173]
[1731981053452,0.03547743,3152.3,3151.9,0.3173]
[1731981053779,0.03547743,3152.3,3151.9,3.48997]
[1731981054088,3.172,3152.6,3152.1,0.3173]
[1731981054240,0.0354512,3152.2,3152.1,0.3173]
[1731981054440,3.96789,3152.7,3152.1,3.48978]
[1731981054744,0.03555609,3152.6,3152.4,0.3173]
[1731981055248,3.17198,3152.6,3152.4,0.3173]
[1731981055440,0.03552987,3152.5,3152.4,0.3173]
[1731981055836,3.7989,3153.0,3152.4,0.3173]
[1731981056095,3.20731475,3152.9,3152.4,0.3173]
[1731981056257,3.17187,3152.8,3152.4,0.3173]
[1731981056457,0.03558231,3152.7,3152.4,0.3173]
[1731981056791,6.97053,3153.0,3152.5,0.3173]
[1731981057462,0.03563475,3152.9,3152.5,0.3173]
[1731981057839,0.03563475,3152.9,3152.2,3.17238]
[1731981057840,3.17186,3152.8,3152.4,0.3173]
[1731981058044,0.03558231,3152.7,3152.4,0.3173]
[1731981058289,3.17191,3152.7,3152.4,0.3173]
[1731981058444,0.03555609,3152.6,3152.4,0.3173]
[1731981058845,3.17228,3152.3,3152.2,0.3173]
[1731981059047,6.97465743,3152.3,3152.2,0.3173]
[1731981059558,7.52465743,3152.3,3152.2,0.3173]
[1731981059761,3.80237743,3152.3,3151.4,0.3173]
[1731981059993,3.17262,3152.0,3151.4,3.49045]
[1731981060156,3.1724,3152.2,3151.6,0.3173]
[1731981060358,3.1724,3152.2,3150.7,6.23287183]
[1731981060359,0.03539499,3151.9,3151.8,0.3173]
[1731981060573,3.17201,3152.6,3152.0,0.3173]
[1731981060776,3.17178,3152.8,3152.0,0.3173]
[1731981061007,0.7516,3152.9,3152.0,0.3173]
[1731981061149,3.17221,3152.4,3152.0,0.3173]
[1731981061485,3.17199,3152.6,3152.0,0.3173]
[1731981061942,3.17221,3152.4,3151.9,0.3173]
[1731981062389,3.1721,3152.5,3151.9,3.48997]
[1731981062592,0.7516,3152.9,3152.1,0.3173]
[1731981062593,3.17181,3152.8,3152.1,0.3173]
[1731981062891,3.17199,3152.6,3152.1,0.3173]
[1731981063658,3.17199,3152.6,3152.0,0.3173]
[1731981064047,3.17169,3152.9,3152.4,0.3173]
[1731981064301,4.21255121,3153.1,3152.6,0.3173]
[1731981064582,7.38409121,3153.1,3152.6,0.3173]
[1731981064793,3.17161,3153.0,3152.6,0.3173]
[1731981065166,1.21255121,3153.1,3152.8,0.3173]
[1731981065361,1.21255121,3153.1,3153.0,0.3173]
[1731981065696,3.17099,3153.6,3153.0,3.48888]
[1731981066190,0.03583063,3153.5,3153.0,0.3173]
[1731981066395,3.17169,3152.9,3152.5,0.3173]
[1731981066748,0.03556423,3152.8,3152.5,0.3173]
[1731981066951,0.03556423,3152.8,3152.7,3.48918]
[1731981067186,3.17128,3153.3,3152.7,0.3173]
[1731981067416,0.03556423,3152.8,3152.7,0.3173]
[1731981067593,3.17128,3153.3,3152.7,0.3173]
[1731981067797,0.03556423,3152.8,3152.7,0.3173]
[1731981067991,3.17139,3153.2,3152.7,0.3173]
[1731981068191,3.17128,3153.3,3152.7,0.3173]
[1731981068192,0.03556423,3152.8,3152.7,3.48918]
[1731981068394,3.17139,3153.2,3152.8,0.3173]
[1731981068612,0.8037,3153.7,3152.8,0.3173]
[1731981068613,3.17122,3153.4,3152.8,3.48902]
[1731981068923,3.9746,3153.7,3153.0,0.3173]
[1731981069130,3.1709,3153.7,3153.0,0.3173]
[1731981069422,3.1709,3153.7,3153.2,0.3173]
[1731981069721,3.17106,3153.6,3153.2,0.3173]
[1731981070301,3.17106,3153.6,3153.0,3.17157]
[1731981070302,3.17106,3153.6,3153.1,0.3173]
[1731981070697,3.1711,3153.5,3153.1,0.3173]
[1731981070916,3.1709,3153.7,3153.1,0.3173]
[1731981071112,3.0,3154.0,3153.1,0.3173]
[1731981071422,3.17099,3153.6,3153.2,0.3173]
[1731981071629,3.17118,3153.4,3153.2,0.3173]
[1731981072001,3.17128,3153.3,3153.2,0.3173]
[1731981072212,3.17128,3153.3,3152.2,0.3173]
[1731981072393,3.17205,3152.6,3152.2,0.3173]
[1731981072939,3.17179,3152.8,3152.2,0.3173]
[1731981073087,3.17179,3152.8,3152.2,3.4896]
[1731981073634,3.17179,3152.8,3152.1,0.3173]
[1731981073937,3.17188,3152.7,3152.3,0.3173]
[1731981074138,3.17203,3152.6,3152.3,0.3173]
[1731981074341,0.7953,3152.9,3152.3,0.3173]
[1731981074342,3.17215,3152.5,3152.3,0.3173]
[1731981075829,0.03559954,3152.4,3152.3,0.3173]
[1731981076918,0.03559954,3152.4,3152.0,0.3173]
[1731981079164,0.03559954,3152.4,3152.1,0.3173]
[1731981079360,3.20778954,3152.4,3152.1,0.3173]
[1731981079860,0.03322,3152.3,3151.9,0.3173]
[1731981080425,0.03322,3152.3,3152.0,0.3173]
[1731981080658,0.03322,3152.3,3152.0,3.48982]
[1731981080948,3.0,3153.0,3152.2,3.48968]
[1731981081151,3.17179,3152.8,3152.5,0.3173]
[1731981082053,3.17179,3152.8,3152.3,0.3173]
[1731981082815,6.17159,3153.0,3152.3,3.48952]
[1731981083062,3.17184,3152.8,3152.2,0.3173]
[1731981084163,4.00205,3152.7,3152.1,0.3173]
[1731981084321,3.17199,3152.6,3152.1,0.3173]
[1731981085165,3.17258,3152.1,3151.5,0.3173]
[1731981085466,3.17267,3152.0,3151.5,0.3173]
[1731981085971,3.17272,3151.9,3151.5,0.3173]
[1731981086202,0.8301,3152.1,3151.3,0.3173]
[1731981086408,3.17259,3152.0,3151.5,0.3173]
[1731981086565,6.34527,3152.0,3151.5,0.3173]
[1731981086964,3.17259,3152.0,3151.5,0.3173]
[1731981087286,0.8301,3152.1,3150.8,3.17373]
[1731981087287,3.17315,3151.5,3150.8,3.17373]
[1731981087512,3.20581946,3151.9,3150.9,0.3173]
[1731981087798,3.17329,3151.3,3150.9,0.3173]
[1731981088195,0.03288745,3151.2,3150.9,0.3173]
[1731981088377,0.03288745,3151.2,3150.8,0.3173]
[1731981088708,3.99126,3151.8,3151.3,0.3173]
[1731981089013,6.17319,3151.4,3151.3,0.3173]
[1731981089194,6.94529,3151.4,3151.3,0.3173]
[1731981089564,6.94529,3151.4,3149.4,3.17513]
[1731981089565,3.17448,3150.2,3149.4,3.17513]
[1731981089801,3.17453,3150.1,3149.4,3.17513]
[1731981089999,3.17453,3150.1,3149.5,0.349243]
[1731981090299,3.17445,3150.2,3149.5,3.524313]
[1731981090716,0.03218928,3150.1,3149.5,3.524313]
[1731981090874,0.03218928,3150.1,3149.7,3.17481]
[1731981091079,3.17426,3150.4,3149.8,3.17479]
[1731981091298,3.17441,3150.2,3149.6,3.8448793]
[1731981091528,0.03250127,3150.1,3149.6,3.8448793]
[1731981091705,0.03250127,3150.1,3149.8,3.17479]
[1731981091913,3.95643,3150.6,3149.8,3.17479]
[1731981091914,3.17403,3150.6,3150.0,3.1746]
[1731981092225,0.7853,3150.9,3150.0,0.64128827]
[1731981092376,3.17428,3150.4,3149.7,0.38448793]
[1731981092575,3.17428,3150.4,3149.8,3.17473]
[1731981093131,0.7853,3150.9,3149.7,0.38448793]
[1731981093132,3.17413,3150.5,3149.9,3.1747]
[1731981093282,3.17413,3150.5,3149.9,3.53061879]
[1731981093483,3.0,3151.2,3150.4,3.17411]
[1731981093484,3.17362,3151.0,3150.4,3.17411]
[1731981093712,3.17362,3151.0,3149.9,0.67321879]
[1731981093713,3.95847,3151.5,3150.8,3.17376]
[1731981093894,3.95847,3151.5,3150.7,3.17388]
[1731981094103,3.17332,3151.3,3150.7,3.17388]
[1731981094308,3.95847,3151.5,3150.7,3.17382]
[1731981094524,3.17332,3151.3,3150.7,3.17382]
[1731981094831,3.17381,3150.8,3150.1,0.3173]
[1731981095129,3.17381,3150.8,3150.2,3.0]
[1731981095623,3.17381,3150.8,3150.1,6.49173]
[1731981095833,3.1736,3151.0,3150.3,3.17427]
[1731981095978,3.1736,3151.0,3150.4,3.17413]